bitfinex-derivatives/quotes_ETHF0:USTF0_20250929
["timestamp","ask_amount","ask_price","bid_price","bid_amount"]
[1759178191778,0.288,4217.3,4217.1,1.1566]
[1759178191978,0.71453,4217.3,4217.1,1.1566]
[1759178192185,0.42654,4217.2,4217.1,1.1566]
[1759178193482,0.71454,4217.2,4217.1,1.1566]
[1759178193687,1.84404,4217.2,4217.1,1.1566]
[1759178194189,2.48388,4217.2,4216.5,1.31034252]
[1759178194389,0.4266,4216.6,4216.5,1.31034252]
[1759178194686,0.7136,4216.6,4216.5,1.6293]
[1759178196274,0.4266,4216.6,4216.5,1.6293]
[1759178196476,0.7136,4216.6,4216.5,1.6293]
[1759178197879,0.7126,4216.6,4216.5,1.6293]
[1759178199190,0.7126,4216.6,4216.5,1.1566]
[1759178199889,1.8421,4216.6,4216.5,1.1566]
[1759178200285,0.7116,4216.6,4216.5,1.6335]
[1759178200779,1.8411,4216.6,4216.5,1.1566]
[1759178200986,1.1295,4216.5,4216.3,1.99424252]
[1759178201184,0.42662,4216.4,4216.3,1.99424252]
[1759178202093,0.42662,4216.4,4216.3,1.1566]
[1759178203692,12.28361878,4218.8,4216.5,0.4769]
[1759178203693,40.8,4217.1,4216.5,0.4769]
[1759178203891,1.06631,4217.4,4217.0,0.4769]
[1759178204088,0.42654,4217.2,4217.1,1.1566]
[1759178204289,0.71054,4217.2,4217.1,1.1566]
[1759178205698,0.00203233,4217.5,4217.3,1.1566]
[1759178205989,0.71052,4217.4,4217.3,1.1566]
[1759178206897,0.70952,4217.4,4217.3,1.1566]
[1759178208897,0.42654,4217.2,4217.1,1.99652577]
[1759178209103,0.70854,4217.2,4217.1,1.99652577]
[1759178209888,0.70854,4217.2,4217.1,1.1566]
[1759178210093,0.70854,4217.2,4217.1,1.99652577]
[1759178210299,0.70854,4217.2,4217.1,1.1566]
[1759178210999,1.83804,4217.2,4217.1,1.1566]
[1759178211298,0.42656,4217.0,4216.9,3.61592577]
[1759178211698,1.47356,4217.0,4216.9,3.61592577]
[1759178212002,0.281,4217.0,4216.9,4.04249577]
[1759178212193,1.19454233,4217.5,4217.4,1.9544]
[1759178212389,1.47554233,4217.5,4217.4,1.9544]
[1759178212694,1.19454233,4217.5,4217.4,1.9544]
[1759178212898,1.47554233,4217.5,4217.4,1.9544]
[1759178213491,2.29934233,4217.5,4217.4,1.9544]
[1759178213903,3.42884233,4217.5,4217.4,1.1566]
[1759178214098,1.19255,4217.1,4217.0,3.31582577]
[1759178214302,1.19255,4217.1,4217.0,2.4759]
[1759178214303,1.47355,4217.1,4217.0,2.4759]
[1759178215001,2.28065,4217.1,4217.0,1.999]
[1759178215202,3.12566,4217.0,4216.9,0.83992577]
[1759178215601,3.12566,4217.0,4216.9,2.04112577]
[1759178215801,2.03729,4216.7,4216.6,1.2012]
[1759178216107,2.31729,4216.7,4216.6,1.9634]
[1759178216305,2.31729,4216.7,4216.6,2.76]
[1759178216604,43.11729,4216.7,4216.6,2.76]
[1759178218606,43.11729,4216.7,4216.6,1.9634]
[1759178218806,44.20569,4216.7,4216.6,1.9634]
[1759178219701,3.12571,4216.5,4216.4,0.83992577]
[1759178219901,3.12571,4216.5,4216.4,2.80332577]
[1759178220501,3.40371,4216.5,4216.4,2.80332577]
[1759178220702,3.40371,4216.5,4216.4,2.04112577]
[1759178220897,0.42661,4216.6,4216.5,1.6745]
[1759178221103,0.7046,4216.6,4216.5,3.2333]
[1759178222112,0.4266,4216.6,4216.5,3.2333]
[1759178222314,0.7046,4216.6,4216.5,3.2333]
[1759178222506,0.4266,4216.6,4216.5,3.2333]
[1759178222709,0.7046,4216.6,4216.5,3.2333]
[1759178223110,0.4266,4216.6,4216.5,3.2333]
[1759178223614,0.7036,4216.6,4216.5,3.2333]
[1759178224010,1.5072,4216.6,4216.5,3.2333]
[1759178224214,2.3143,4216.6,4216.5,3.2333]
[1759178225009,1.23022,4216.4,4216.3,1.26721048]
[1759178225214,3.12573,4216.3,4216.2,1.2012]
[1759178225415,3.40273,4216.3,4216.2,1.2012]
[1759178225610,3.40273,4216.3,4216.2,1.9634]
[1759178226115,0.4266,4216.6,4216.5,2.0321]
[1759178226413,0.7036,4216.6,4216.5,2.0321]
[1759178226619,0.7036,4216.6,4216.5,3.2333]
[1759178227023,1.5072,4216.6,4216.5,3.2333]
[1759178227522,2.3143,4216.6,4216.5,3.2333]
[1759178228122,1.5072,4216.6,4216.5,3.2333]
[1759178228723,0.7026,4216.6,4216.5,3.65991]
[1759178229021,0.7026,4216.6,4216.5,3.2333]
[1759178229222,0.4266,4216.6,4216.5,3.65991]
[1759178229425,0.7026,4216.6,4216.5,3.2333]
[1759178229725,0.4266,4216.6,4216.5,3.2333]
[1759178230023,1.5062,4216.6,4216.5,3.2333]
[1759178230627,1.5062,4216.6,4216.5,3.65991]
[1759178230827,1.5052,4216.6,4216.5,3.65991]
[1759178231518,2.3123,4216.6,4216.5,3.2333]
[1759178232626,2.3123,4216.6,4216.5,3.65991]
[1759178232926,0.42658,4216.8,4216.7,3.18659]
[1759178233122,40.8,4217.0,4216.9,1.62777]
[1759178233323,1.23214233,4217.5,4217.4,2.76]
[1759178233516,1.50714233,4217.5,4217.4,2.76]
[1759178233721,42.30714233,4217.5,4217.4,2.76]
[1759178233915,43.11424233,4217.5,4217.4,2.76]
[1759178234828,44.17564233,4217.5,4217.4,1.2012]
[1759178235827,44.17564233,4217.5,4217.4,1.9608]
[1759178236925,1.20185,4217.1,4217.0,3.1844]
[1759178237229,1.47585,4217.1,4217.0,3.1844]
[1759178237524,2.25235,4217.1,4217.0,3.1844]
[1759178237725,3.03978,4216.8,4216.7,1.186]
[1759178238028,3.31278,4216.8,4216.7,1.186]
[1759178238427,3.0398,4216.6,4216.5,1.6593]
[1759178238627,3.0398,4216.6,4216.5,2.4189]
[1759178238628,3.3128,4216.6,4216.5,2.4189]
[1759178238823,2.2514,4216.6,4216.5,2.4189]
[1759178240324,2.2514,4216.6,4216.3,1.186]
[1759178240325,3.03982,4216.4,4216.3,1.186]
[1759178240523,3.31282,4216.4,4216.3,1.186]
[1759178241129,1.97845,4216.1,4216.0,1.6587]
[1759178241331,43.05145,4216.1,4216.0,3.1838]
[1759178241534,43.05045,4216.1,4216.0,3.1838]
[1759178242029,44.11185,4216.1,4216.0,1.186]
[1759178242232,1.5518,4215.9,4215.7,0.84115339]
[1759178242532,42.13865,4216.1,4215.7,1.9456]
[1759178242533,3.31189,4215.8,4215.7,1.9456]
[1759178242732,2.25049,4215.8,4215.7,2.7111]
[1759178243434,1.97849,4215.8,4215.7,2.7111]
[1759178243632,2.25049,4215.8,4215.7,2.7111]
[1759178244523,3.29849,4215.8,4215.7,1.186]
[1759178244721,2.97161,4215.6,4215.5,1.96675339]
[1759178244930,2.19561,4215.6,4215.5,2.69905339]
[1759178245120,3.24361,4215.6,4215.5,0.84115339]
[1759178245325,42.93332,4216.1,4215.4,2.6079]
[1759178245326,1.92362,4215.5,4215.4,2.6079]
[1759178245526,40.8,4216.1,4216.0,0.4598]
[1759178245725,42.24315,4216.1,4216.0,3.0677]
[1759178247032,42.99455,4216.1,4216.0,3.0677]
[1759178247231,42.72355,4216.1,4216.0,3.0677]
[1759178247533,44.04255,4216.1,4216.0,1.8579]
[1759178249038,44.04255,4216.1,4216.0,2.3177]
[1759178249740,40.8,4216.1,4216.0,3.49436]
[1759178249938,0.27,4216.1,4216.0,3.49436]
[1759178250134,0.69665,4216.1,4216.0,3.49436]
[1759178251038,1.44215,4216.1,4216.0,3.0677]
[1759178251433,3.24155,4216.1,4216.0,3.0677]
[1759178251633,3.24155,4216.1,4216.0,1.1256]
[1759178252028,2.9716,4215.7,4215.6,0.84115339]
[1759178252231,1.92361,4215.6,4215.5,2.03325339]
[1759178252638,1.92361,4215.6,4215.5,2.3177]
[1759178252838,2.97161,4215.6,4215.5,2.3177]
[1759178253934,1.92361,4215.6,4215.5,2.3177]
[1759178256343,1.92361,4215.6,4215.5,3.0677]
[1759178259337,2.97161,4215.6,4215.1,0.8422474]
[1759178259642,41.07,4215.7,4215.1,2.61009989]
[1759178259643,1.92365,4215.2,4215.1,2.61009989]
[1759178259838,2.19165,4215.2,4215.1,2.61009989]
[1759178260944,3.23965,4215.2,4215.1,1.86009989]
[1759178261140,3.23965,4215.2,4214.5,0.4598]
[1759178261141,1.17232,4214.5,4214.4,0.7323]
[1759178261338,1.44032,4214.5,4214.4,1.4823]
[1759178261539,1.44032,4214.5,4214.4,1.90913]
[1759178261742,0.42675,4215.2,4214.7,0.75]
[1759178261947,0.42673,4215.4,4215.1,1.4823]
[1759178262147,41.9722,4215.7,4215.6,1.4823]
[1759178262345,0.00307103,4215.7,4215.6,1.90901]
[1759178262543,0.27107103,4215.7,4215.6,1.90901]
[1759178262740,0.27107103,4215.7,4215.6,1.4823]
[1759178263137,0.27107103,4215.7,4215.6,9.15310001]
[1759178263439,0.27107103,4215.7,4215.6,8.31342736]
[1759178263642,0.27107103,4215.7,4215.6,3.44757265]
[1759178265240,1.01657103,4215.7,4215.6,3.44757265]
[1759178265438,0.27107103,4215.7,4215.6,3.44757265]
[1759178265644,0.00307103,4215.7,4215.6,3.44757265]
[1759178265943,0.00307103,4215.7,4215.6,8.44757265]
[1759178266150,4.99067442,4216.9,4216.8,2.6079]
[1759178266352,5.17567442,4216.9,4216.8,2.6079]
[1759178266541,45.97567442,4216.9,4216.8,2.6079]
[1759178267148,43.89865575,4216.9,4216.8,2.6079]
[1759178267346,41.97395575,4216.9,4216.8,2.6079]
[1759178267545,1.44095575,4216.9,4216.8,2.6079]
[1759178268151,43.41425575,4216.9,4216.8,2.6079]
[1759178268445,44.16565575,4216.9,4216.8,2.6079]
[1759178268841,44.16565575,4216.9,4216.8,0.7323]
[1759178269437,0.4266,4216.6,4216.5,1.8579]
[1759178269641,3.3638,4216.6,4216.5,1.8579]
[1759178269838,3.3638,4216.6,4216.5,2.6079]
[1759178271556,3.3638,4216.6,4216.5,0.7323]
[1759178272054,3.3638,4216.6,4216.5,1.8579]
[1759178272740,2.9372,4216.6,4216.2,0.83961873]
[1759178272945,3.09686,4216.1,4216.0,0.83961873]
[1759178273142,3.09686,4216.1,4215.7,1.1256]
[1759178273143,1.92359,4215.8,4215.7,2.69751873]
[1759178273348,3.36289,4215.8,4215.7,0.83961873]
[1759178273752,3.36289,4215.8,4215.7,0.7323]
[1759178274346,1.4914,4215.4,4215.3,2.74881873]
[1759178274545,3.28713,4215.4,4215.3,2.74881873]
[1759178274742,3.28713,4215.4,4215.3,3.49351873]
[1759178274941,2.18313,4215.4,4215.3,3.49351873]
[1759178275342,3.28713,4215.4,4215.3,3.49351873]
[1759178275844,2.8604,4215.4,4215.3,3.49351873]
[1759178276044,2.29046,4216.1,4216.0,2.7069]
[1759178276347,1.45146,4216.1,4216.0,3.1626]
[1759178276542,3.28706,4216.1,4216.0,3.1626]
[1759178276760,3.28706,4216.1,4216.0,2.7069]
[1759178276949,2.18306,4216.1,4216.0,2.7069]
[1759178277444,2.18306,4216.1,4216.0,3.1626]
[1759178277646,1.4914,4216.1,4216.0,3.1626]
[1759178277850,0.42659,4216.8,4216.4,1.1786]
[1759178278047,0.42659,4216.8,4215.8,0.8398395]
[1759178278048,0.42665,4216.2,4216.1,0.42665]
[1759178278357,0.7598,4216.0,4215.9,1.5283]
[1759178278555,1.0248,4216.0,4215.9,1.5283]
[1759178278757,1.0248,4216.0,4215.9,2.7069]
[1759178280169,2.8604,4216.0,4215.9,2.7069]
[1759178281960,2.8594,4216.0,4215.9,1.5283]
[1759178282159,3.3205,4216.0,4215.9,0.7836]
[1759178283459,2.8594,4216.0,4215.9,2.7069]
[1759178284155,2.29044,4216.4,4216.3,1.5283]
[1759178284355,3.02204,4216.4,4216.3,2.7069]
[1759178284563,2.18104,4216.4,4216.3,2.7069]
[1759178284863,3.28504,4216.4,4216.3,2.7069]
[1759178285057,3.02204,4216.4,4216.3,2.7069]
[1759178285254,3.28504,4216.4,4216.3,2.7069]
[1759178285456,3.28503,4216.4,4216.3,3.13354]
[1759178285762,1.7544,4216.4,4216.3,3.13354]
[1759178286763,1.0228,4216.4,4216.3,3.13354]
[1759178287061,0.42659,4216.8,4216.7,3.13349]
[1759178287253,0.00188575,4216.9,4216.8,3.13349]
[1759178287655,0.26488575,4216.9,4216.8,3.13349]
[1759178288569,0.00188575,4216.9,4216.8,3.13349]
[1759178288863,0.26488575,4216.9,4216.8,3.9733295]
[1759178289364,0.26488575,4216.9,4216.8,3.13349]
[1759178290967,0.00188575,4216.9,4216.8,2.7069]
[1759178291167,0.00188575,4216.9,4216.8,3.5467395]
[1759178291367,0.00188575,4216.9,4216.8,2.7069]
[1759178291368,0.26388575,4216.9,4216.8,2.7069]
[1759178291964,0.00188575,4216.9,4216.8,2.7069]
[1759178292271,0.26388575,4216.9,4216.8,3.13349]
[1759178292754,0.26388575,4216.9,4216.8,2.7069]
[1759178293160,0.26388575,4216.9,4216.8,3.13349]
[1759178294363,0.00188575,4216.9,4216.8,3.13349]
[1759178294569,0.26388575,4216.9,4216.8,3.13349]
[1759178295364,0.00188575,4216.9,4216.8,8.13349]
[1759178295671,0.26388575,4216.9,4216.8,8.13349]
[1759178295862,0.26388575,4216.9,4216.8,2.7069]
[1759178296067,0.26388575,4216.9,4216.8,3.13349]
[1759178296971,0.00188575,4216.9,4216.8,3.13349]
[1759178297475,0.26388575,4216.9,4216.8,3.97087057]
[1759178300576,0.69046575,4216.9,4216.8,2.7069]
[1759178300758,0.26388575,4216.9,4216.8,2.7069]
[1759178301062,0.26388575,4216.9,4216.8,3.13349]
[1759178301864,0.26388575,4216.9,4216.8,3.97087057]
[1759178302265,0.26388575,4216.9,4216.8,3.13349]
[1759178302666,1.00598575,4216.9,4216.8,3.13349]
[1759178303067,1.43256575,4216.9,4216.8,3.13349]
[1759178303268,2.15188575,4216.9,4216.8,3.13349]
[1759178303564,1.00598575,4216.9,4216.8,3.13349]
[1759178303965,1.00598575,4216.9,4216.8,3.97087057]
[1759178304261,0.26388575,4216.9,4216.8,3.97087057]
[1759178304862,0.00188575,4216.9,4216.8,3.97087057]
[1759178305170,0.26388575,4216.9,4216.8,3.13349]
[1759178306273,1.02338575,4216.9,4216.8,3.13349]
[1759178306869,0.00188575,4216.9,4216.8,3.13349]
[1759178308274,0.26388575,4216.9,4216.8,3.13349]
[1759178310967,1.054,4217.9,4217.2,1.06638]
[1759178311271,3.24969,4217.8,4217.7,2.6041]
[1759178311974,3.24969,4217.8,4217.7,2.60593327]
[1759178312178,3.2523179,4217.8,4217.7,2.60593327]
[1759178313478,0.7621279,4217.8,4217.7,3.03244327]
[1759178313674,1.0241279,4217.8,4217.7,3.03244327]
[1759178314578,0.0026279,4217.8,4217.7,3.03244327]
[1759178314881,0.0026279,4217.8,4217.7,2.60593327]
[1759178314882,2.5638279,4217.8,4217.7,2.60593327]
[1759178315079,2.8258279,4217.8,4217.7,2.60593327]
[1759178315581,3.2523279,4217.8,4217.7,3.03244327]
[1759178315985,2.8258279,4217.8,4217.7,3.03244327]
[1759178316274,1.7718279,4217.8,4217.7,3.86971777]
[1759178316778,0.0026279,4217.8,4217.7,3.86971777]
[1759178316982,0.7621279,4217.8,4217.7,3.86971777]
[1759178317387,0.2646279,4217.8,4217.7,3.86971777]
[1759178318880,0.0026279,4217.8,4217.7,3.86971777]
[1759178319081,0.2646279,4217.8,4217.7,3.86971777]
[1759178319483,1.0241279,4217.8,4217.7,3.86971777]
[1759178320078,1.4506179,4217.8,4217.7,3.86971777]
[1759178320287,1.0241279,4217.8,4217.7,3.86971777]
[1759178321190,1.4506179,4217.8,4217.7,3.86971777]
[1759178322680,1.0241279,4217.8,4217.7,3.86971777]
[1759178324286,1.4506179,4217.8,4217.7,3.86971777]
[1759178324481,1.0241279,4217.8,4217.7,3.86971777]
[1759178324687,0.7621279,4217.8,4217.7,3.86971777]
[1759178324887,0.2646279,4217.8,4217.7,3.86971777]
[1759178325083,0.6911179,4217.8,4217.7,3.86971777]
[1759178325785,3.2523179,4217.8,4217.7,0.83910777]
[1759178326082,3.2523179,4217.8,4217.7,0.00183327]
[1759178326288,8.2523179,4217.8,4217.7,0.00183327]
[1759178327582,7.9903179,4217.8,4217.7,0.74163327]
[1759178327778,8.2523179,4217.8,4217.7,0.74163327]
[1759178328087,3.2523179,4217.8,4217.7,2.60593327]
[1759178328483,3.2523179,4217.8,4217.7,0.00183327]
[1759178329189,3.2523179,4217.8,4217.7,0.74163327]
[1759178329579,3.2523179,4217.8,4217.7,1.83213327]
[1759178330589,3.2523179,4217.8,4217.7,0.00183327]
[1759178335687,2.9903179,4217.8,4217.7,0.00183327]
[1759178335891,3.2523179,4217.8,4217.7,0.00183327]
[1759178338095,2.9903179,4217.8,4217.7,0.00183327]
[1759178338296,3.2523179,4217.8,4217.7,0.00183327]
[1759178338889,44.0523179,4217.8,4217.7,0.00183327]
[1759178341691,44.0523179,4217.8,4217.0,0.8372745]
[1759178341692,0.42657,4217.1,4217.0,0.8372745]
[1759178341999,1.92064,4216.4,4216.3,0.8372745]
[1759178342201,3.23994,4216.4,4216.3,1.5551745]
[1759178342405,44.03994,4216.4,4216.3,0.7179]
[1759178342801,2.97797,4216.1,4216.0,2.6231745]
[1759178343002,2.97797,4216.1,4216.0,0.00249023]
[1759178343003,3.23897,4216.1,4216.0,0.00249023]
[1759178344207,44.03897,4216.1,4216.0,0.00249023]
[1759178344813,2.97805,4215.3,4215.2,0.7179]
[1759178345003,3.23905,4215.3,4215.2,0.7179]
[1759178345310,3.23905,4215.3,4215.2,2.5223]
[1759178345810,3.23905,4215.3,4215.2,2.52438872]
[1759178346111,3.23905,4215.3,4215.2,0.71998872]
[1759178346408,3.23905,4215.3,4215.2,0.00208872]
[1759178348008,3.23905,4215.3,4214.1,2.93013462]
[1759178348009,0.42687,4214.1,4214.0,2.40311048]
[1759178348214,2.8123,4214.1,4214.0,2.5223]
[1759178348900,2.8123,4214.1,4214.0,1.7859]
[1759178349112,2.8123,4214.1,4214.0,0.00255844]
[1759178349113,2.81469937,4214.1,4214.0,0.00255844]
[1759178349305,43.61469937,4214.1,4214.0,0.00255844]
[1759178351909,43.35369937,4214.1,4214.0,0.00255844]
[1759178352114,43.61469937,4214.1,4214.0,2.52485844]
[1759178355019,42.29639937,4214.1,4214.0,2.95495844]
[1759178355203,0.75909937,4214.1,4214.0,3.38183844]
[1759178355409,0.00239937,4214.1,4214.0,8.38183844]
[1759178355606,1.06682,4215.6,4215.0,0.4394]
[1759178355607,1.1129,4215.4,4215.0,0.4394]
[1759178355816,0.261,4215.3,4215.2,2.5129]
[1759178356011,2.7968,4215.3,4215.2,2.5129]
[1759178356210,2.5358,4215.0,4214.9,0.7178]
[1759178356511,2.79922216,4215.0,4214.9,1.7858]
[1759178356703,2.79922216,4215.0,4214.9,2.5129]
[1759178357711,37.07880149,4215.9,4214.9,2.5129]
[1759178357712,0.7308,4216.0,4215.9,2.93959]
[1759178357912,2.7968,4216.0,4215.9,2.5129]
[1759178358213,2.7968,4216.0,4215.5,0.4394]
[1759178358214,2.5358,4215.2,4215.1,1.7858]
[1759178358417,41.5308,4216.0,4215.9,0.7178]
[1759178358614,43.33749119,4216.0,4215.9,2.5129]
[1759178358815,2.5358,4215.7,4215.6,1.7858]
[1759178359115,2.7968,4215.7,4215.6,2.5129]
[1759178359320,1.6839,4215.7,4215.6,2.5129]
[1759178360013,40.80169119,4216.0,4215.6,1.4449]
[1759178360217,40.80169119,4216.0,4215.9,2.5129]
[1759178360414,41.06269119,4216.0,4215.9,2.5129]
[1759178360617,0.26269119,4216.0,4215.9,2.5129]
[1759178360817,0.99349119,4216.0,4215.9,2.5129]
[1759178361517,0.00169119,4216.0,4215.9,2.5129]
[1759178361721,0.7308,4216.8,4216.7,2.5129]
[1759178361923,2.7078,4216.8,4216.7,2.5129]
[1759178362114,43.5968,4216.8,4216.7,2.5129]
[1759178362422,42.4839,4216.8,4216.7,2.5129]
[1759178362715,0.00291839,4216.8,4216.7,2.5129]
[1759178362917,0.26391839,4216.8,4216.7,2.5129]
[1759178363314,2.10761839,4216.8,4216.7,2.5129]
[1759178363717,0.99471839,4216.8,4216.7,2.5129]
[1759178363922,0.26391839,4216.8,4216.7,2.5129]
[1759178364119,40.8,4217.2,4217.1,2.93947]
[1759178364319,41.061,4217.2,4217.1,2.93947]
[1759178364823,41.774,4217.2,4217.1,2.93947]
[1759178365017,43.60128053,4217.2,4217.1,2.94129142]
[1759178365222,40.80298053,4217.2,4217.1,2.94129142]
[1759178365413,0.26398053,4217.2,4217.1,2.94129142]
[1759178366124,0.00298053,4217.2,4217.1,2.94129142]
[1759178366322,0.26398053,4217.2,4217.1,2.94129142]
[1759178366518,1.13947,4218.1,4218.0,0.7146]
[1759178366711,2.7983,4218.1,4218.0,2.4986]
[1759178367623,1.43267997,4218.1,4218.0,2.4986]
[1759178367823,1.69367997,4218.1,4218.0,2.9274]
[1759178368019,0.713,4217.6,4217.5,3.35393]
[1759178368325,0.261,4217.6,4217.5,3.35393]
[1759178368525,1.1067,4218.0,4217.8,0.42649]
[1759178368724,0.261,4217.9,4217.8,1.14109]
[1759178368933,0.261,4217.9,4217.8,1.83469]
[1759178369123,0.974,4217.9,4217.8,1.83469]
[1759178369426,0.261,4217.9,4217.5,0.42652]
[1759178369633,2.5373,4217.7,4217.6,1.14111]
[1759178369927,0.261,4217.7,4217.6,2.92512]
[1759178370121,41.513,4218.0,4217.9,2.4986]
[1759178370325,43.5983,4218.0,4217.9,2.4986]
[1759178370522,2.7983,4218.0,4217.9,2.4986]
[1759178372130,2.5373,4217.6,4217.5,0.7146]
[1759178372330,2.7983,4217.6,4217.5,0.7146]
[1759178372537,2.7983,4217.6,4217.5,1.805]
[1759178373031,2.7983,4217.6,4217.1,1.09222142]
[1759178373237,1.8197,4217.5,4217.4,1.4082]
[1759178373923,2.0807,4217.5,4217.4,2.92512]
[1759178374326,2.7983,4217.5,4217.4,2.92512]
[1759178374925,2.7983,4217.5,4217.4,2.4986]
[1759178375131,2.7983,4217.5,4217.4,2.92512]
[1759178375532,0.713,4217.6,4217.5,0.4265]
[1759178375727,1.6916,4217.6,4217.5,0.7146]
[1759178375926,2.96382,4217.4,4217.3,1.4082]
[1759178376131,2.96382,4217.4,4217.3,2.92513]
[1759178376132,2.5373,4217.4,4217.3,2.92513]
[1759178376328,1.5332,4217.7,4217.6,0.7146]
[1759178376631,2.9638,4217.7,4217.6,2.4986]
[1759178376831,1.4306,4217.7,4217.6,2.9251]
[1759178377027,1.6916,4217.7,4217.6,2.9251]
[1759178377530,0.261,4217.7,4217.6,2.9251]
[1759178377932,0.713,4217.7,4217.6,2.9251]
[1759178378135,0.974,4217.7,4217.6,2.9251]
[1759178379335,0.713,4217.7,4217.6,2.9251]
[1759178379535,0.974,4217.7,4217.6,2.9251]
[1759178379732,0.974,4217.7,4217.5,0.4288]
[1759178379733,2.7983,4217.7,4217.2,1.0904]
[1759178379933,3.41242,4217.5,4217.4,1.14112]
[1759178380229,0.973,4217.6,4217.5,3.35392]
[1759178380625,1.53523997,4218.1,4218.0,2.4986]
[1759178380829,2.79937997,4218.1,4218.0,2.92507]
[1759178381531,3.22583997,4218.1,4218.0,2.92507]
[1759178382034,3.22583997,4218.1,4218.0,3.35387]
[1759178382437,2.53937997,4218.1,4218.0,3.35387]
[1759178382737,3.22583997,4218.1,4218.0,2.4986]
[1759178383431,2.96583997,4218.1,4218.0,2.4986]
[1759178383628,3.22583997,4218.1,4218.0,2.4986]
[1759178383829,2.96583997,4218.1,4218.0,2.92507]
[1759178384037,3.22583997,4218.1,4218.0,2.92507]
[1759178384236,3.22583997,4218.1,4218.0,2.4986]
[1759178384428,3.22583997,4218.1,4217.7,1.1411]
[1759178384429,2.9638,4217.8,4217.7,1.1411]
[1759178384627,3.2238,4217.8,4217.7,2.9251]
[1759178386331,2.5373,4217.8,4217.7,2.9251]
[1759178386525,2.7973,4217.8,4217.7,2.9251]
[1759178387334,1.6906,4217.8,4217.7,2.9251]
[1759178388638,0.71507997,4218.1,4218.0,3.35387]
[1759178388833,2.08177997,4218.1,4218.0,3.35387]
[1759178389036,2.79937997,4218.1,4218.0,2.92507]
[1759178390237,0.97507997,4218.1,4218.0,3.35387]
[1759178391035,2.08177997,4218.1,4218.0,3.35387]
[1759178391240,3.22583997,4218.1,4218.0,2.4986]
[1759178391550,2.79937997,4218.1,4218.0,2.92507]
[1759178391938,3.22583997,4218.1,4218.0,2.92507]
[1759178392134,2.53937997,4218.1,4218.0,2.92507]
[1759178392440,3.22584997,4218.1,4218.0,0.7146]
[1759178392639,3.22584997,4218.1,4218.0,1.14106]
[1759178392839,3.22584997,4218.1,4218.0,2.92506]
[1759178393137,2.79937997,4218.1,4218.0,2.92506]
[1759178393341,2.79937997,4218.1,4218.0,3.35386]
[1759178393639,3.22582997,4218.1,4218.0,3.35386]
[1759178394039,1.4306,4219.0,4218.0,6.5192]
[1759178394233,35.20175,4219.7,4218.0,6.5192]
[1759178394234,2.94422,4219.4,4219.3,2.4484]
[1759178394438,3.20422,4219.4,4219.3,2.4484]
[1759178395129,1.32446968,4219.4,4218.8,1.0665]
[1759178395336,2.5179,4218.9,4218.8,2.19638]
[1759178395539,2.7779,4218.9,4218.8,2.87478]
[1759178397640,2.7779,4218.9,4218.8,2.4484]
[1759178398542,2.7779,4218.9,4218.5,0.7035]
[1759178398543,1.8815,4218.6,4218.5,0.7035]
[1759178398743,1.88152,4218.4,4218.3,0.7035]
[1759178398938,2.14152,4218.4,4218.3,0.7035]
[1759178399136,3.20432,4218.4,4218.3,1.77]
[1759178399740,3.20432,4218.4,4218.3,2.4484]
[1759178400244,2.94426,4219.0,4218.9,0.7035]
[1759178400439,3.20426,4219.0,4218.9,1.77]
[1759178400644,2.94426,4219.0,4218.9,1.77]
[1759178400845,3.63656,4219.0,4218.9,0.7035]
[1759178401645,3.63656,4219.0,4218.6,1.77]
[1759178401646,2.94429,4218.7,4218.6,1.77]
[1759178402340,3.20429,4218.7,4218.6,0.7035]
[1759178403345,3.20429,4218.7,4218.6,2.87482]
[1759178403346,2.94429,4218.7,4218.6,2.87482]
[1759178403544,2.94429,4218.7,4218.0,1.2660745]
[1759178403545,2.5179,4219.1,4219.0,3.28738]
[1759178403748,1.06576,4219.8,4219.0,3.28738]
[1759178403749,1.14265,4219.3,4219.2,1.80825]
[1759178403939,1.40265,4219.3,4219.2,2.87475]
[1759178404639,0.9763,4219.3,4219.2,2.87475]
[1759178404839,1.40265,4219.3,4219.2,2.87475]
[1759178405448,0.00166968,4219.4,4219.3,2.87475]
[1759178405947,0.05205354,4220.3,4220.2,2.87466]
[1759178406343,1.0628,4221.4,4221.1,0.42617]
[1759178406551,2.5179,4221.4,4221.3,2.87455]
[1759178406742,1.0628,4221.8,4221.7,2.4484]
[1759178407045,0.00258451,4221.8,4221.7,2.4484]
[1759178407247,0.26258451,4221.8,4221.7,2.4484]
[1759178408247,0.7163,4222.3,4222.2,2.4484]
[1759178408450,0.9753,4222.3,4222.2,2.4484]
[1759178409245,0.97705246,4222.3,4222.2,2.4484]
[1759178409441,2.03985246,4222.3,4222.2,2.4484]
[1759178409847,2.51965246,4222.3,4222.2,2.4484]
[1759178410042,2.51965246,4222.3,4221.5,0.6716]
[1759178410043,2.5179,4221.9,4221.8,0.7035]
[1759178410248,0.7163,4221.5,4221.4,2.4484]
[1759178410549,2.0381,4221.5,4221.4,2.4484]
[1759178411044,0.00175246,4222.3,4222.2,2.4484]
[1759178411045,0.71805246,4222.3,4222.2,2.4484]
[1759178411548,0.26075246,4222.3,4222.2,2.4484]
[1759178411849,2.77865246,4222.3,4222.2,2.4484]
[1759178412055,2.77865246,4222.3,4222.2,0.7035]
[1759178412444,1.14238,4222.0,4221.9,1.77]
[1759178412649,2.94398,4222.0,4221.9,1.77]
[1759178412851,3.20298,4222.0,4221.9,1.77]
[1759178413153,0.00175246,4222.3,4222.2,2.4484]
[1759178413951,0.97705246,4222.3,4222.2,2.4484]
[1759178414145,0.42609,4222.0,4221.9,0.7035]
[1759178414350,3.20299,4222.0,4221.9,1.7563]
[1759178415053,3.20299,4222.0,4221.9,0.7035]
[1759178415253,3.20299,4222.0,4221.9,2.4774]
[1759178415856,0.42609,4222.0,4221.9,2.4774]
[1759178416055,3.16639,4222.0,4221.9,2.4774]